lending/lending_fUSD_20250408
["ID","MTS","AMOUNT","RATE_DAILY","PERIOD"]
[357518901,1744113053563,-503.86664728,0.00035616,2]
[357518902,1744113053575,-500.0,0.00035616,2]
[357518903,1744113053586,-500.0,0.00035616,2]
[357518904,1744113053595,-500.0,0.00035616,2]
[357518905,1744113053605,-500.0,0.00035616,2]
[357518906,1744113053615,-516.46569025,0.00035616,2]
[357518907,1744113053625,-500.0,0.00035616,2]
[357518908,1744113053634,-500.0,0.00035616,2]
[357518909,1744113053644,-500.0,0.00035616,2]
[357518910,1744113053653,-500.0,0.00035616,2]
[357518911,1744113053663,-504.07107266,0.00035616,2]
[357518912,1744113053673,-645.2615997,0.00035616,2]
[357518913,1744113053683,-776.84,0.00035616,2]
[357518914,1744113053693,-500.0,0.00035616,2]
[357518915,1744113053702,-500.0,0.00035616,2]
[357518916,1744113053711,-516.69424244,0.00035616,2]
[357518917,1744113053721,-500.0,0.00035616,2]
[357518918,1744113053731,-500.0,0.00035616,2]
[357518919,1744113053740,-500.0,0.00035616,2]
[357518920,1744113053749,-500.0,0.00035616,2]
[357518921,1744113053759,-500.0,0.00035616,2]
[357518922,1744113053768,-500.0,0.00035616,2]
[357518923,1744113053778,-500.0,0.00035616,2]
[357518924,1744113053789,-500.0,0.00035616,2]
[357518925,1744113053798,-500.0,0.00035616,2]
[357518926,1744113053807,-500.0,0.00035616,2]
[357518927,1744113053818,-510.9184787,0.00035616,2]
[357518928,1744113053828,-500.0,0.00035616,2]
[357518929,1744113053838,-500.0,0.00035616,2]
[357518930,1744113053847,-500.0,0.00035616,2]
[357518931,1744113053857,-500.0,0.00035616,2]
[357518932,1744113053866,-500.0,0.00035616,2]
[357518933,1744113053876,-500.0,0.00035616,2]
[357518934,1744113053885,-500.0,0.00035616,2]
[357518935,1744113053894,-500.0,0.00035616,2]
[357518936,1744113053904,-500.0,0.00035616,2]
[357518937,1744113053914,-500.0,0.00035616,2]
[357518938,1744113053923,-500.0,0.00035616,2]
[357518939,1744113053933,-500.0,0.00035616,2]
[357518940,1744113053943,-500.0,0.00035616,2]
[357518941,1744113053952,-500.0,0.00035616,2]
[357518942,1744113053962,-501.43611271,0.00035616,2]
[357518943,1744113053972,-520.39513038,0.00035616,2]
[357518944,1744113053982,-500.0,0.00035616,2]
[357518945,1744113053993,-500.0,0.00035616,2]
[357518946,1744113054004,-500.0,0.00035616,2]
[357518947,1744113054015,-500.0,0.00035616,2]
[357518948,1744113054026,-503.45859531,0.00035616,2]
[357518949,1744113054039,-154.44557546,0.00035616,2]
[357518950,1744113054050,-500.0,0.00035616,2]
[357518951,1744113054061,-520.75515954,0.00035616,2]
[357518952,1744113054073,-506.02767674,0.00035616,2]
[357518953,1744113054084,-528.82127855,0.00035616,2]
[357518954,1744113054095,-500.0,0.00035616,2]
[357518955,1744113054106,-500.0,0.00035616,2]
[357518956,1744113054117,-500.0,0.00035616,2]
[357518957,1744113054129,-500.0,0.00035616,2]
[357518958,1744113054139,-516.17860112,0.00035616,2]
[357518959,1744113054149,-500.0,0.00035616,2]
[357518960,1744113054160,-500.0,0.00035616,2]
[357518961,1744113054172,-507.18295058,0.00035616,2]
[357518962,1744113054182,-500.0,0.00035616,2]
[357518963,1744113054193,-500.0,0.00035616,2]
[357518964,1744113054204,-5000.0,0.00035616,2]
[357518965,1744113054215,-554.67,0.00035616,2]
[357518966,1744113054225,-500.0,0.00035616,2]
[357518967,1744113054236,-500.0,0.00035616,2]
[357518968,1744113054247,-500.0,0.00035616,2]
[357518969,1744113054257,-500.0,0.00035616,2]
[357518970,1744113054268,-500.0,0.00035616,2]
[357518971,1744113054279,-1510.07,0.00035616,2]
[357518972,1744113054292,-747.31,0.00035616,2]
[357518973,1744113054303,-500.0,0.00035616,2]
[357518974,1744113054314,-505.76638778,0.00035616,2]
[357518975,1744113054325,-500.0,0.00035616,2]
[357518976,1744113054335,-500.0,0.00035616,2]
[357518977,1744113054345,-507.09298252,0.00035616,2]
[357518978,1744113054355,-500.0,0.00035616,2]
[357518979,1744113054365,-500.0,0.00035616,2]
[357518980,1744113054375,-502.43649111,0.00035616,2]
[357518981,1744113054385,-500.0,0.00035616,2]
[357518982,1744113054396,-500.0,0.00035616,2]
[357518983,1744113054406,-504.03163656,0.00035616,2]
[357518984,1744113054416,-500.0,0.00035616,2]
[357518985,1744113054426,-500.0,0.00035616,2]
[357518986,1744113054436,-186.85184414,0.00035616,2]
[357518987,1744113054446,-504.80434491,0.00035616,2]
[357518988,1744113054456,-500.0,0.00035616,2]
[357518989,1744113054466,-500.0,0.00035616,2]
[357518990,1744113054476,-500.0,0.00035616,2]
[357518991,1744113054488,-522.47,0.00035616,2]
[357518992,1744113054499,-500.0,0.00035616,2]
[357518993,1744113054509,-500.0,0.00035616,2]
[357518994,1744113054520,-502.75574423,0.00035616,2]
[357518995,1744113054531,-500.0,0.00035616,2]
[357518996,1744113054542,-500.0,0.00035616,2]
[357518997,1744113054553,-500.0,0.00035616,2]
[357518998,1744113054563,-500.0,0.00035616,2]
[357518999,1744113054818,-500.0,0.00035616,2]
[357519000,1744113054829,-500.0,0.00035616,2]
[357519001,1744113054839,-515.12550468,0.00035616,2]
[357519002,1744113054850,-500.0,0.00035616,2]
[357519003,1744113054861,-505.87964077,0.00035616,2]
[357519004,1744113054871,-500.0,0.00035616,2]
[357519005,1744113054883,-500.0,0.00035616,2]
[357519006,1744113054893,-500.0,0.00035616,2]
[357519007,1744113054904,-500.0,0.00035616,2]
[357519008,1744113054915,-500.0,0.00035616,2]
[357519009,1744113054925,-500.0,0.00035616,2]
[357519010,1744113054936,-500.0,0.00035616,2]
[357519011,1744113054947,-500.0,0.00035616,2]
[357519012,1744113054958,-521.13617548,0.00035616,2]
[357519013,1744113054969,-500.0,0.00035616,2]
[357519014,1744113054979,-503.99189763,0.00035616,2]
[357519015,1744113054990,-500.0,0.00035616,2]
[357519016,1744113055000,-588.86446916,0.00035616,2]
[357519017,1744113055011,-565.97812567,0.00035616,2]
[357519018,1744113055020,-500.0,0.00035616,2]
[357519019,1744113055030,-500.0,0.00035616,2]
[357519020,1744113055041,-500.0,0.00035616,2]
[357519021,1744113055051,-500.0,0.00035616,2]
[357519022,1744113055061,-516.46,0.00035616,2]
[357519023,1744113055071,-500.0,0.00035616,2]
[357519024,1744113055082,-500.0,0.00035616,2]
[357519025,1744113055092,-500.0,0.00035616,2]
[357519026,1744113055102,-500.0,0.00035616,2]
[357519027,1744113055111,-500.0,0.00035616,2]
[357519028,1744113055121,-500.0,0.00035616,2]
[357519029,1744113055131,-500.0,0.00035616,2]
[357519030,1744113055141,-517.70384802,0.00035616,2]
[357519031,1744113055151,-500.0,0.00035616,2]
[357519032,1744113055161,-569.98242799,0.00035616,2]
[357519033,1744113055171,-500.0,0.00035616,2]
[357519034,1744113055181,-500.0,0.00035616,2]
[357519035,1744113055191,-500.0,0.00035616,2]
[357519036,1744113055201,-500.0,0.00035616,2]
[357519037,1744113055211,-500.0,0.00035616,2]
[357519038,1744113055222,-500.0,0.00035616,2]
[357519039,1744113055232,-500.0,0.00035616,2]
[357519040,1744113055243,-572.22172193,0.00035616,2]
[357519041,1744113055253,-500.0,0.00035616,2]
[357519042,1744113055263,-500.0,0.00035616,2]
[357519043,1744113055273,-517.62882647,0.00035616,2]
[357519044,1744113055284,-500.0,0.00035616,2]
[357519045,1744113055294,-500.0,0.00035616,2]
[357519046,1744113055304,-502.4476558,0.00035616,2]
[357519047,1744113055314,-500.0,0.00035616,2]
[357519048,1744113055325,-500.0,0.00035616,2]
[357519049,1744113055335,-506.78,0.00035616,2]
[357519050,1744113055346,-500.0,0.00035616,2]
[357519051,1744113055357,-502.40319351,0.00035616,2]
[357519052,1744113055367,-503.03776397,0.00035616,2]
[357519053,1744113055377,-542.22675886,0.00035616,2]
[357519054,1744113055387,-500.0,0.00035616,2]
[357519055,1744113055397,-500.0,0.00035616,2]
[357519056,1744113055407,-500.0,0.00035616,2]
[357519057,1744113055417,-500.94697417,0.00035616,2]
[357519058,1744113055427,-856.36,0.00035616,2]
[357519059,1744113055437,-856.36,0.00035616,2]
[357519060,1744113055448,-856.36,0.00035616,2]
[357519061,1744113055458,-856.36,0.00035616,2]
[357519062,1744113055468,-856.36,0.00035616,2]
[357519063,1744113055478,-856.36,0.00035616,2]
[357519064,1744113055493,-856.36,0.00035616,2]
[357519065,1744113055504,-856.36,0.00035616,2]
[357519066,1744113055514,-500.0,0.00035616,2]
[357519067,1744113055524,-856.36,0.00035616,2]
[357519068,1744113055535,-856.36,0.00035616,2]
[357519069,1744113055545,-856.36,0.00035616,2]
[357519070,1744113055555,-856.36,0.00035616,2]
[357519071,1744113055566,-856.36,0.00035616,2]
[357519072,1744113055578,-500.0,0.00035616,2]
[357519073,1744113055590,-856.36,0.00035616,2]
[357519074,1744113055600,-500.0,0.00035616,2]
[357519075,1744113055610,-500.0,0.00035616,2]
[357519076,1744113055620,-502.07120786,0.00035616,2]
[357519077,1744113055629,-500.0,0.00035616,2]
[357519078,1744113055639,-500.0,0.00035616,2]
[357519079,1744113055649,-503.08495419,0.00035616,2]
[357519080,1744113055659,-500.0,0.00035616,2]
[357519081,1744113055668,-500.0,0.00035616,2]
[357519082,1744113055678,-500.0,0.00035616,2]
[357519083,1744113055688,-500.0,0.00035616,2]
[357519084,1744113055698,-500.0,0.00035616,2]
[357519085,1744113055707,-500.0,0.00035616,2]
[357519086,1744113055717,-500.0,0.00035616,2]
[357519087,1744113055727,-500.0,0.00035616,2]
[357519088,1744113055737,-500.0,0.00035616,2]
[357519089,1744113055746,-500.0,0.00035616,2]
[357519090,1744113055756,-500.0,0.00035616,2]
[357519091,1744113055766,-500.0,0.00035616,2]
[357519092,1744113055775,-502.41141842,0.00035616,2]
[357519093,1744113055785,-507.57209432,0.00035616,2]
[357519094,1744113055794,-500.0,0.00035616,2]
[357519095,1744113055804,-500.0,0.00035616,2]
[357519096,1744113055813,-564.29,0.00035616,2]
[357519097,1744113055823,-500.0,0.00035616,2]
[357519098,1744113055833,-721.79,0.00035616,2]
[357519099,1744113055842,-525.71,0.00035616,2]
[357519100,1744113055851,-500.0,0.00035616,2]
[357519101,1744113055861,-500.0,0.00035616,2]
[357519102,1744113055870,-500.0,0.00035616,2]
[357519103,1744113055879,-500.0,0.00035616,2]
[357519104,1744113055889,-500.0,0.00035616,2]
[357519105,1744113055899,-374.62640432,0.00035616,2]
[357519106,1744113055908,-500.0,0.00035616,2]
[357519107,1744113055918,-500.0,0.00035616,2]
[357519108,1744113055927,-500.0,0.00035616,2]
[357519109,1744113055936,-500.0,0.00035616,2]
[357519110,1744113055946,-506.90662135,0.00035616,2]
[357519111,1744113055956,-500.0,0.00035616,2]
[357519112,1744113055965,-500.0,0.00035616,2]
[357519113,1744113055974,-500.0,0.00035616,2]
[357519114,1744113055984,-500.0,0.00035616,2]
[357519115,1744113055993,-500.0,0.00035616,2]
[357519116,1744113056002,-500.0,0.00035616,2]
[357519117,1744113056012,-508.84731208,0.00035616,2]
[357519118,1744113056021,-514.66613894,0.00035616,2]
[357519119,1744113056031,-500.0,0.00035616,2]
[357519120,1744113056042,-500.0,0.00035616,2]
[357519121,1744113056052,-501.23205739,0.00035616,2]
[357519122,1744113056061,-500.0,0.00035616,2]
[357519123,1744113056071,-500.0,0.00035616,2]
[357519124,1744113056080,-500.0,0.00035616,2]
[357519125,1744113056089,-500.0,0.00035616,2]
[357519126,1744113056099,-500.0,0.00035616,2]
[357519127,1744113056109,-500.0,0.00035616,2]
[357519128,1744113056118,-500.0,0.00035616,2]
[357519129,1744113056128,-500.0,0.00035616,2]
[357519130,1744113056138,-502.25001502,0.00035616,2]
[357519131,1744113056147,-500.0,0.00035616,2]
[357519132,1744113056157,-500.0,0.00035616,2]
[357519133,1744113056167,-500.0,0.00035616,2]
[357519134,1744113056177,-953.32,0.00035616,2]
[357519135,1744113056186,-500.0,0.00035616,2]
[357519136,1744113056195,-500.0,0.00035616,2]
[357519137,1744113056205,-500.0,0.00035616,2]
[357519138,1744113056215,-500.0,0.00035616,2]
[357519139,1744113056225,-500.0,0.00035616,2]
[357519140,1744113056234,-500.0,0.00035616,2]
[357519141,1744113056243,-500.0,0.00035616,2]
[357519142,1744113056253,-500.0,0.00035616,2]
[357519143,1744113056262,-500.0,0.00035616,2]
[357519144,1744113056271,-500.0,0.00035616,2]
[357519145,1744113056281,-500.0,0.00035616,2]
[357519146,1744113056291,-589.45,0.00035616,2]
[357519147,1744113056301,-500.0,0.00035616,2]
[357519148,1744113056310,-500.0,0.00035616,2]
[357519149,1744113056320,-500.0,0.00035616,2]
[357519150,1744113056329,-500.0,0.00035616,2]
[357519151,1744113056339,-500.0,0.00035616,2]
[357519152,1744113056348,-599.56,0.00035616,2]
[357519153,1744113056359,-500.0,0.00035616,2]
[357519154,1744113056368,-500.0,0.00035616,2]
[357519155,1744113056378,-500.0,0.00035616,2]
[357519156,1744113056388,-500.0,0.00035616,2]
[357519157,1744113056398,-500.0,0.00035616,2]
[357519158,1744113056408,-500.0,0.00035616,2]
[357519159,1744113056419,-500.0,0.00035616,2]
[357519160,1744113056429,-500.0,0.00035616,2]
[357519161,1744113056438,-1250.36,0.00035616,2]
[357519162,1744113056448,-500.0,0.00035616,2]
[357519163,1744113056458,-500.0,0.00035616,2]
[357519164,1744113056468,-500.0,0.00035616,2]
[357519165,1744113056478,-500.0,0.00035616,2]
[357519166,1744113056488,-500.0,0.00035616,2]
[357519167,1744113056500,-510.39749675,0.00035616,2]
[357519168,1744113056510,-500.0,0.00035616,2]
[357519169,1744113056519,-500.0,0.00035616,2]
[357519170,1744113056529,-524.57378483,0.00035616,2]
[357519171,1744113056540,-500.0,0.00035616,2]
[357519172,1744113056550,-502.53,0.00035616,2]
[357519173,1744113056559,-500.0,0.00035616,2]
[357519174,1744113056570,-500.0,0.00035616,2]
[357519175,1744113056580,-500.0,0.00035616,2]
[357519176,1744113056590,-500.0,0.00035616,2]
[357519177,1744113056600,-500.0,0.00035616,2]
[357519178,1744113056609,-500.0,0.00035616,2]
[357519179,1744113056619,-500.0,0.00035616,2]
[357519180,1744113056628,-500.0,0.00035616,2]
[357519181,1744113056637,-1283.88,0.00035616,2]
[357519182,1744113056647,-500.0,0.00035616,2]
[357519183,1744113056657,-1157.35,0.00035616,2]
[357519184,1744113056666,-500.0,0.00035616,2]
[357519185,1744113056676,-500.0,0.00035616,2]
[357519186,1744113056686,-500.0,0.00035616,2]
[357519187,1744113056695,-500.0,0.00035616,2]
[357519188,1744113056705,-500.0,0.00035616,2]
[357519189,1744113056715,-500.0,0.00035616,2]
[357519190,1744113056725,-500.0,0.00035616,2]
[357519191,1744113056735,-500.0,0.00035616,2]
[357519192,1744113056745,-500.0,0.00035616,2]
[357519193,1744113056754,-500.0,0.00035616,2]
[357519194,1744113056764,-500.0,0.00035616,2]
[357519195,1744113056774,-706.4,0.00035616,2]
[357519196,1744113056784,-500.0,0.00035616,2]
[357519197,1744113056793,-500.0,0.00035616,2]
[357519198,1744113056803,-500.0,0.00035616,2]
[357519199,1744113056813,-327.14216263,0.00035616,2]
[357519200,1744113056823,-500.0,0.00035616,2]
[357519201,1744113056832,-1267.57,0.00035616,2]
[357519202,1744113056842,-500.0,0.00035616,2]
[357519203,1744113056852,-500.0,0.00035616,2]
[357519204,1744113056862,-500.0,0.00035616,2]
[357519205,1744113056871,-500.0,0.00035616,2]
[357519206,1744113056881,-538.68340539,0.00035616,2]
[357519207,1744113056891,-500.0,0.00035616,2]
[357519208,1744113056901,-500.0,0.00035616,2]
[357519209,1744113056910,-385.25893668,0.00035616,2]
[357519210,1744113056920,-580.28,0.00035616,2]
[357519211,1744113056930,-503.846311,0.00035616,2]
[357519212,1744113056939,-500.0,0.00035616,2]
[357519213,1744113056957,-500.0,0.00035616,2]
[357519214,1744113056973,-500.0,0.00035616,2]
[357519215,1744113056985,-500.0,0.00035616,2]
[357519216,1744113056999,-503.02729689,0.00035616,2]
[357519217,1744113057015,-501.21039625,0.00035616,2]
[357519218,1744113057030,-1437.4,0.00035616,2]
[357519219,1744113057045,-500.0,0.00035616,2]
[357519220,1744113057059,-1251.37,0.00035616,2]
[357519221,1744113057071,-500.0,0.00035616,2]
[357519222,1744113057085,-500.0,0.00035616,2]
[357519223,1744113057100,-500.0,0.00035616,2]
[357519224,1744113057113,-1895.27,0.00035616,2]
[357519225,1744113057129,-500.0,0.00035616,2]
[357519226,1744113057145,-1089.77,0.00035616,2]
[357519227,1744113057161,-500.0,0.00035616,2]
[357519228,1744113057174,-560.12,0.00035616,2]
[357519229,1744113057188,-500.0,0.00035616,2]
[357519230,1744113057203,-500.0,0.00035616,2]
[357519231,1744113057218,-500.0,0.00035616,2]
[357519232,1744113057234,-500.0,0.00035616,2]
[357519233,1744113057247,-2009.79642568,0.00035616,120]
[357519234,1744113057260,-500.0,0.00035616,2]
[357519235,1744113057272,-500.0,0.00035616,2]
[357519236,1744113057287,-500.0,0.00035616,2]
[357519237,1744113057302,-506.66193606,0.00035616,2]
[357519238,1744113057314,-609.89980825,0.00035616,2]
[357519239,1744113057326,-523.44628755,0.00035616,2]
[357519240,1744113057343,-500.0,0.00035616,2]
[357519241,1744113057357,-500.0,0.00035616,2]
[357519242,1744113057370,-500.0,0.00035616,2]
[357519243,1744113057382,-501.8703623,0.00035616,2]
[357519244,1744113057395,-579.82,0.00035616,2]
[357519245,1744113057408,-1036.14,0.00035616,2]
[357519246,1744113057421,-500.0,0.00035616,2]
[357519247,1744113057434,-500.0,0.00035616,2]
[357519248,1744113057447,-500.0,0.00035616,2]
[357519249,1744113057459,-500.0,0.00035616,2]
[357519250,1744113057472,-508.66837456,0.00035616,2]
[357519251,1744113057485,-550.0,0.00035616,2]
[357519252,1744113057498,-502.4467046,0.00035616,2]
[357519253,1744113057510,-500.0,0.00035616,2]
[357519254,1744113057523,-500.0,0.00035616,2]
[357519255,1744113057545,-828.66,0.00035616,2]
[357519256,1744113057557,-500.0,0.00035616,2]
[357519257,1744113057570,-500.0,0.00035616,2]
[357519258,1744113057585,-500.0,0.00035616,2]
[357519259,1744113057598,-883.72,0.00035616,2]
[357519260,1744113057610,-500.0,0.00035616,2]
[357519261,1744113057622,-500.0,0.00035616,2]
[357519262,1744113057635,-561.22,0.00035616,2]
[357519263,1744113057647,-504.30951132,0.00035616,2]
[357519264,1744113057659,-500.0,0.00035616,2]
[357519265,1744113057672,-500.0,0.00035616,2]
[357519266,1744113057684,-500.0,0.00035616,2]
[357519267,1744113057696,-500.0,0.00035616,2]
[357519268,1744113057709,-519.43911487,0.00035616,2]
[357519269,1744113057722,-508.91983668,0.00035616,2]
[357519270,1744113057734,-304.05782609,0.00035616,2]
[357519271,1744113059651,-827.15,0.00023596,2]
[357519272,1744113158253,250.0,0.00019,2]
[357519273,1744113620234,500.0,0.00033,120]
[357519274,1744113644903,500.0,0.00033,120]
[357519282,1744114198196,439.36,0.00033,120]
[357519283,1744114232287,-300.0,0.00021,2]
[357519284,1744114232297,-150.0,0.00022162,2]
[357519285,1744114232307,-350.0,0.00023,2]
[357519286,1744114232319,-149.41672839,0.00023235,2]
[357519287,1744114232331,-1.58327161,0.00023235,2]
[357519288,1744114232340,-841.24535479,0.00023235,2]
[357519289,1744114232356,-3115.75464521,0.00023235,2]
[357519290,1744114232366,-172.85,0.00023596,2]
[357519291,1744114232377,-474.57345542,0.00024344,2]
[357519292,1744114232407,-149.12965424,0.00024344,2]
[357519293,1744114232417,-219.89,0.00024999,2]
[357519294,1744114232428,-400.0,0.00025,2]
[357519295,1744114232439,-2800.0,0.00025,2]
[357519296,1744114232450,-200.0,0.000251,2]
[357519297,1744114232459,-150.0,0.00025162,2]
[357519298,1744114232469,-473.35,0.00025162,2]
[357519299,1744114232479,-151.0,0.00026235,2]
[357519300,1744114232489,-3438.48327776,0.00026235,2]
[357519326,1744114238330,-1120.0,0.00023235,2]
[357519327,1744114238340,-518.51672224,0.00026235,2]
[357519328,1744114238349,-1120.0,0.00026235,2]
[357519329,1744114238359,-219.89,0.00026369,2]
[357519330,1744114238369,-269.88,0.00026849,2]
[357519331,1744114238378,-450.0,0.00027,2]
[357519332,1744114238387,-200.0,0.000271,2]
[357519333,1744114238397,-219.89,0.00027739,2]
[357519334,1744114238406,-150.0,0.00028162,2]
[357519335,1744114238416,-500.0,0.00029,2]
[357519336,1744114238425,-216.0,0.000291,2]
[357519337,1744114238435,-219.89,0.00029109,2]
[357519338,1744114238445,-151.0,0.00029235,2]
[357519339,1744114238454,-3957.0,0.00029235,2]
[357519340,1744114238464,-725.87086754,0.00029235,2]
[357519341,1744114238480,-394.12913246,0.00029235,2]
[357519342,1744114238489,-200.0,0.000301,2]
[357519343,1744114238498,-219.89,0.00030479,2]
[357519344,1744114238507,-643.58,0.00030958,2]
[357519345,1744114238517,-550.0,0.00031,2]
[357519346,1744114238527,-200.0,0.00031,2]
[357519347,1744114238536,-738.80086584,0.00031061,2]
[357519348,1744114238556,-566.26057689,0.00031061,2]
[357519349,1744114238568,-633.053,0.00031061,2]
[357519350,1744114238583,-317.81720078,0.00031061,2]
[357519527,1744114240342,-814.10921168,0.00031061,2]
[357519529,1744114240353,-296.9722516,0.00031061,2]
[357519532,1744114240365,-799.1534871,0.00031061,2]
[357519872,1744114246595,-19733.83340611,0.00031061,2]
[357519873,1744114246605,-352.44,0.00031089,2]
[357519874,1744114246614,-200.0,0.00031109,7]
[357519875,1744114246624,-250.0,0.00031114,2]
[357519876,1744114246633,-150.0,0.00031162,2]
[357519877,1744114246642,-1000.0,0.00031234,2]
[357519878,1744114246652,-434.2792067,0.000315,2]
[357519879,1744114246661,-219.89,0.00031849,2]
[357519880,1744114246670,-855.767,0.000319,30]
[357519881,1744114246680,-200.0,0.000319,2]
[357519882,1744114246689,-200.0,0.000321,2]
[357519883,1744114246699,-151.0,0.00032235,2]
[357519884,1744114246708,-882.225,0.00032235,2]
[357519885,1744114246718,-1120.0,0.00032235,2]
[357519886,1744114246727,-1147.37438939,0.0003234,5]
[357519887,1744114246989,-1073.19926782,0.0003234,5]
[357519888,1744114246998,-1052.1350643,0.0003234,5]
[357519889,1744114247008,-1013.19687402,0.0003234,5]
[357519890,1744114247017,-1028.97375505,0.0003234,5]
[357519891,1744114247027,-269.88,0.00032646,2]
[357519892,1744114247035,-500.0,0.000329,2]
[357519893,1744114247045,-600.0,0.00033,2]
[357519894,1744114247054,-200.0,0.000331,2]
[357519895,1744114247063,-299.78,0.00033127,2]
[357519896,1744114247072,-219.89,0.00033218,2]
[357519897,1744114247084,-643.58,0.00033222,2]
[357519898,1744114247093,-219.89,0.00034588,2]
[357519899,1744114247102,-650.0,0.00035,2]
[357519900,1744114247112,-159.17,0.00035,2]
[357519901,1744114247122,-1000.0,0.00035,5]
[357519902,1744114247132,-1000.0,0.00035,4]
[357519903,1744114247141,-500.0,0.00035,2]
[357519904,1744114247151,-1000.0,0.00035139,2]
[357519905,1744114247160,-1000.0,0.0003515,10]
[357519906,1744114247170,-151.0,0.00035235,2]
[357519907,1744114247180,-261.944,0.00035235,2]
[357519908,1744114247190,-643.58,0.00035485,2]
[357519909,1744114247200,-672.1908,0.0003549,2]
[357519910,1744114247209,-900.0,0.000355,12]
[357519911,1744114247219,-2500.0,0.00035501,2]
[357519912,1744114247229,-3382.61592647,0.00035501,2]
[357519913,1744114247239,-1528.37031014,0.00035505,2]
[357519914,1744114447966,230.202122,7.945e-05,2]
[357519916,1744114603208,1447.0434382,0.00033,120]
[357519918,1744114976960,250.0,0.00019,2]
[357519919,1744115108220,3517.60248981,0.0002,2]
[357519920,1744115108251,550.0,0.0002,2]
[357519923,1744115281831,2000.0,0.00015,2]
[357519932,1744115343548,-7635.66563064,0.00015,2]
[357519934,1744115343610,-7635.66563064,0.00015,2]
[357519936,1744115343669,-181.40125478,0.00015,2]
[357519954,1744115348988,1100541.49257565,0.00033,120]
[357519955,1744115368668,-7944.72028096,0.00015,2]
[357519957,1744115368763,-3129.19718861,0.00015,2]
[357519961,1744115432332,-416.13921511,0.00015,2]
[357519963,1744115432392,-407.19815347,0.00015,2]
[357519964,1744115432404,-334.19876297,0.00015,2]
[357519965,1744115432416,-457.16865762,0.00015,2]
[357520173,1744115438380,-4929.79502469,0.00015,2]
[357520175,1744115438390,-350.75187185,0.00019999,2]
[357520177,1744115438399,-248.91959955,0.00019999,2]
[357520178,1744115438409,-2387.74832555,0.0002,2]
[357520315,1744115440905,-39943.98748299,0.0002,2]
[357520316,1744115441033,-527.55520127,0.0002,2]
[357520317,1744115441044,-11138.92282279,0.0002,2]
[357520318,1744115441149,-22666.1436161,0.0002,2]
[357520319,1744115441168,-10385.86909626,0.0002,2]
[357520418,1744115558535,150.0,0.0003,30]
[357520419,1744115711298,1851.0,0.0003,30]
[357520428,1744116631815,-329.28203214,0.00019569,2]
[357520430,1744116631824,-94.01827551,0.00019791,2]
[357520432,1744116631836,-235.26375664,0.00019791,2]
[357520433,1744116631846,-300.0,0.00019999,2]
[357520434,1744116631856,-135.15618252,0.0002,2]
[357520452,1744116632054,-9172.14897907,0.0002,2]
[357520561,1744116637565,-605.51982495,0.0002,2]
[357520562,1744116637577,-6254.74118317,0.0002,2]
[357520563,1744116637621,-7466.84296659,0.0002,2]
[357520564,1744116637632,-2589.49314428,0.0002,2]